bitfinex/quotes_ETHUSD_20220226
["timestamp","ask_amount","ask_price","bid_price","bid_amount"]
[1645863254841,1.20945142,2795.0,2794.8,1.12919765]
[1645863255440,0.19214235,2795.1,2794.8,1.12919765]
[1645863255644,4.88362017,2795.3,2794.8,1.12919765]
[1645863255886,0.00508069,2795.1,2794.8,1.12919765]
[1645863256687,4.87965959,2795.3,2794.8,1.12919765]
[1645863256688,6.13571644,2795.3,2794.8,1.12919765]
[1645863257089,0.00508073,2795.1,2794.8,1.12919765]
[1645863257291,0.00508073,2795.1,2794.8,0.55291827]
[1645863257892,6.13571644,2795.3,2794.8,0.55291827]
[1645863258294,0.00508073,2795.1,2794.8,0.55291827]
[1645863258897,0.00508073,2795.1,2795.0,0.01838682]
[1645863259094,6.07314057,2795.3,2795.0,0.01838682]
[1645863259292,4.81708372,2795.3,2795.0,0.01838682]
[1645863259539,0.00508073,2795.1,2795.0,0.01838682]
[1645863260432,4.81708372,2795.3,2795.0,0.01838682]
[1645863260632,0.00508072,2795.2,2795.0,0.01838682]
[1645863261630,4.81708372,2795.3,2795.0,0.01838682]
[1645863261856,0.00508067,2795.2,2795.0,0.01838682]
[1645863262032,0.00508067,2795.2,2795.1,1.27477893]
[1645863262833,4.81708372,2795.3,2795.1,1.27477893]
[1645863263034,4.82216434,2795.3,2795.1,1.27477893]
[1645863263915,4.81708372,2795.3,2795.1,1.31285042]
[1645863264115,4.81708372,2795.3,2795.1,0.03807149]
[1645863264312,4.82216429,2795.3,2795.1,0.03807149]
[1645863265113,4.81708372,2795.3,2795.1,0.03807149]
[1645863265313,1.149,2795.2,2795.1,0.03807149]
[1645863267844,4.81708372,2795.3,2795.1,0.03807149]
[1645863267845,4.82216434,2795.3,2795.1,0.03807149]
[1645863268846,4.81708372,2795.3,2795.1,0.03807149]
[1645863269049,4.82199282,2795.3,2795.1,0.03807149]
[1645863269348,5.90069308,2795.3,2795.1,0.03807149]
[1645863269946,5.89578398,2795.3,2795.1,0.03807149]
[1645863270347,4.82199282,2795.3,2795.1,0.03807149]
[1645863271194,4.81708372,2795.3,2795.1,0.03807149]
[1645863271395,6.76139976,2795.3,2795.1,0.03807149]
[1645863271998,4.82199282,2795.3,2795.1,0.03807149]
[1645863272398,4.81708372,2795.3,2795.1,0.03807149]
[1645863272596,4.82183389,2795.3,2795.1,0.03807149]
[1645863273604,4.81708372,2795.3,2795.1,0.03807149]
[1645863273995,4.82183389,2795.3,2795.1,0.03807149]
[1645863274199,6.25354492,2795.3,2795.1,0.03807149]
[1645863274837,6.24879475,2795.3,2795.1,0.03807149]
[1645863275033,6.25354492,2795.3,2795.1,0.03807149]
[1645863276034,6.24879475,2795.3,2795.1,0.03807149]
[1645863276239,6.25355565,2795.3,2795.1,0.03807149]
[1645863277243,7.14379475,2795.3,2795.1,0.03807149]
[1645863277440,6.5,2795.2,2794.8,0.29779946]
[1645863277639,0.36630457,2795.1,2794.8,0.29779946]
[1645863278690,0.37106561,2795.1,2794.8,0.29779946]
[1645863278891,0.36630457,2795.0,2794.8,0.29779946]
[1645863279495,6.24879475,2795.3,2794.8,0.29779946]
[1645863279692,0.36761427,2795.2,2794.8,0.29779946]
[1645863279892,0.00476028,2795.1,2794.8,0.29779946]
[1645863280096,0.36761427,2795.0,2794.8,0.29779946]
[1645863280993,0.36761427,2794.9,2794.8,0.29779946]
[1645863281195,0.36761427,2795.0,2794.8,0.29779946]
[1645863282238,0.37237455,2795.1,2794.8,0.29779946]
[1645863282435,0.36761427,2795.0,2794.8,0.29779946]
[1645863283340,0.36805057,2794.9,2794.8,0.29779946]
[1645863283841,0.36805057,2795.0,2794.8,1.42110635]
[1645863284038,0.36805057,2794.9,2794.8,0.29779946]
[1645863284439,6.24879475,2795.3,2794.8,4.92112667]
[1645863284642,0.00476029,2795.1,2794.9,1.12332721]
[1645863284840,0.36801671,2795.0,2794.9,1.12332721]
[1645863285442,0.36801671,2795.0,2794.9,4.62332721]
[1645863285641,4.81708372,2795.3,2794.9,4.62332721]
[1645863285642,4.81708372,2795.3,2794.9,1.12332721]
[1645863285895,0.00476037,2795.1,2794.9,1.12332721]
[1645863286095,0.36828191,2795.0,2794.9,1.12332721]
[1645863286297,0.00476037,2795.1,2794.9,1.12332721]
[1645863286698,4.81708372,2795.3,2794.9,1.12332721]
[1645863286898,4.81708372,2795.3,2794.9,4.92332721]
[1645863287100,4.81708372,2795.3,2794.9,1.42332721]
[1645863287101,0.00476041,2795.1,2794.9,1.42332721]
[1645863287300,0.00476041,2795.1,2795.0,4.62332721]
[1645863287498,0.00476041,2795.1,2795.0,1.12332721]
[1645863287699,0.00476041,2795.1,2795.0,1.42332721]
[1645863288100,0.36827877,2795.1,2795.0,1.42332721]
[1645863288904,0.00476036,2795.2,2795.0,1.42332721]
[1645863289103,0.00476036,2795.2,2795.1,1.12332721]
[1645863289307,0.3682413,2795.2,2795.1,1.12332721]
[1645863289542,0.37300162,2795.2,2795.1,1.12332721]
[1645863290033,0.37300162,2795.2,2795.1,2.56029129]
[1645863290235,0.37300162,2795.2,2795.1,13.52029129]
[1645863290236,0.00476032,2795.2,2795.1,13.52029129]
[1645863290436,0.00396058,2796.0,2795.1,19.89499129]
[1645863290634,0.00396058,2796.0,2795.3,11.3187]
[1645863290635,0.37213904,2796.0,2795.3,11.3187]
[1645863290837,0.37213904,2796.0,2795.4,5.13932721]
[1645863290838,0.01903823,2795.7,2795.4,5.13932721]
[1645863291043,0.36817846,2795.6,2795.5,1.12332721]
[1645863291237,0.01903823,2795.7,2795.5,4.92332721]
[1645863291441,0.01903823,2795.7,2795.6,1.63932721]
[1645863291638,0.34087012,2796.0,2795.6,0.516]
[1645863291837,5.99032363,2796.1,2795.6,0.516]
[1645863291838,0.00475987,2795.7,2795.6,0.516]
[1645863292238,0.00475987,2795.7,2795.3,1.71061]
[1645863292840,0.00396058,2796.0,2795.3,1.71061]
[1645863293042,0.00228579,2795.8,2795.4,3.5]
[1645863293286,0.00228579,2795.8,2795.5,0.516]
[1645863293891,0.00228579,2795.8,2795.5,1.41054]
[1645863294091,4.7642,2796.1,2795.6,3.5]
[1645863294293,0.00228591,2795.8,2795.5,2.01054]
[1645863295292,0.5,2795.7,2795.5,1.49454]
[1645863295495,0.5,2795.7,2795.5,1.49961889]
[1645863295692,0.00507824,2795.8,2795.5,1.49961889]
[1645863295893,4.75978947,2796.1,2795.5,1.49961889]
[1645863296492,4.75978947,2796.1,2795.5,1.49454]
[1645863297749,4.75978947,2796.1,2795.5,4.99454]
[1645863298347,4.70978947,2796.1,2795.5,5.08399]
[1645863299048,4.70978947,2796.1,2795.6,0.00281246]
[1645863299248,4.70978947,2796.1,2795.6,0.51881246]
[1645863299451,4.70978947,2796.1,2795.7,3.5]
[1645863299651,4.70978947,2796.1,2795.8,1.15888347]
[1645863300051,0.04996642,2795.7,2795.5,5.08399]
[1645863300354,0.04996642,2795.7,2795.6,0.52108074]
[1645863300990,1.15697492,2795.7,2795.6,0.52108074]
[1645863301191,0.04996642,2795.7,2795.5,0.6]
[1645863301402,0.04996642,2795.7,2795.3,5.35353]
[1645863301596,0.04996642,2795.7,2795.5,0.00508063]
[1645863302198,0.72516075,2795.7,2795.5,0.00508063]
[1645863302394,0.72516075,2795.7,2794.7,0.25]
[1645863302594,0.72516075,2795.7,2794.1,5.2115]
[1645863302595,1.25369,2795.3,2794.1,5.2115]
[1645863302795,5.4074,2795.2,2794.1,5.2115]
[1645863302998,5.05266058,2795.2,2794.2,4.39497]
[1645863303194,5.05266058,2795.2,2794.2,0.89497]
[1645863303397,1.45266058,2795.2,2794.3,0.3]
[1645863303796,1.81136058,2795.2,2794.3,0.3]
[1645863303997,1.45266058,2795.2,2794.6,0.00508158]
[1645863304199,1.4487,2795.2,2794.6,0.00508158]
[1645863304850,1.4487,2795.2,2794.2,0.89497]
[1645863305044,0.3587,2795.0,2794.1,3.65889861]
[1645863305244,0.8951,2795.0,2794.8,0.00508138]
[1645863306043,0.8951,2795.0,2793.9,6.9816]
[1645863306044,1.2538,2795.0,2793.9,6.9816]
[1645863306243,2.36294299,2795.1,2794.8,0.00508138]
[1645863306445,2.20540272,2795.1,2794.8,0.00508138]
[1645863306644,1.20540272,2795.1,2794.8,0.00508138]
[1645863306849,0.20819198,2795.2,2794.8,0.00508138]
[1645863307046,0.00396058,2795.3,2794.8,0.00508138]
[1645863307245,0.6488,2795.5,2794.6,0.516]
[1645863307448,3.48056642,2795.7,2794.6,0.516]
[1645863307449,0.00396058,2795.4,2794.6,4.316]
[1645863307649,3.48056642,2795.7,2794.9,0.00508128]
[1645863307650,0.00396058,2795.6,2794.9,0.00508128]
[1645863307852,0.04996642,2795.7,2795.1,1.0]
[1645863308048,0.04996642,2795.7,2795.3,1.0250023]
[1645863308284,0.04996642,2795.7,2795.3,1.3250023]
[1645863308886,0.04996642,2795.7,2795.4,0.00508078]
[1645863309085,0.04996642,2795.7,2795.6,8.279377]
[1645863311693,0.41063826,2795.7,2795.6,8.279377]
[1645863313143,0.04996642,2795.7,2795.6,9.407206]
[1645863313341,0.04996642,2795.7,2795.6,8.279377]
[1645863314744,0.04996642,2795.7,2795.6,12.079377]
[1645863315045,0.04996642,2795.7,2795.6,25.68271151]
[1645863315248,0.04996642,2795.7,2795.6,27.44277262]
[1645863315249,6.642e-05,2795.7,2795.6,27.44277262]
[1645863315447,6.642e-05,2795.7,2795.6,28.44277262]
[1645863315887,6.642e-05,2795.7,2795.6,30.94277262]
[1645863316289,6.642e-05,2795.7,2795.6,18.22271151]
[1645863316489,6.642e-05,2795.7,2795.6,13.72271151]
[1645863316788,6.642e-05,2795.7,2795.6,12.72271151]
[1645863316989,6.642e-05,2795.7,2795.6,17.22271151]
[1645863317189,6.642e-05,2795.7,2795.6,16.22271151]
[1645863317793,6.642e-05,2795.7,2795.6,27.54141151]
[1645863317994,6.642e-05,2795.7,2795.6,28.54141151]
[1645863319397,6.642e-05,2795.7,2795.6,27.18271151]
[1645863320250,6.642e-05,2795.7,2795.6,28.18271151]
[1645863321048,6.642e-05,2795.7,2795.6,28.54141151]
[1645863321847,6.642e-05,2795.7,2795.6,28.18271151]
[1645863324408,6.642e-05,2795.7,2795.6,12.72271151]
[1645863324607,6.642e-05,2795.7,2795.6,11.90671151]
[1645863324808,6.642e-05,2795.7,2795.6,10.779377]
[1645863325509,1.42612503,2795.7,2795.6,10.779377]
[1645863325707,1.78557819,2795.7,2795.6,10.779377]
[1645863326512,1.42612503,2795.7,2795.6,10.779377]
[1645863326712,1.78568059,2795.7,2795.6,10.779377]
[1645863327948,0.35962198,2795.7,2795.6,10.779377]
[1645863328348,6.642e-05,2795.7,2795.6,10.779377]
[1645863330452,0.35962198,2795.7,2795.6,10.779377]
[1645863330649,1.5700038,2795.7,2795.6,10.779377]
[1645863331091,0.35962198,2795.7,2795.6,10.779377]
[1645863332098,1.37824272,2795.7,2795.6,10.779377]
[1645863332299,0.35962198,2795.7,2795.6,10.779377]
[1645863333198,6.642e-05,2795.7,2795.6,10.779377]
[1645863335548,6.642e-05,2795.7,2795.6,10.77814756]
[1645863335947,6.642e-05,2795.7,2795.6,6.6396885]
[1645863336248,6.642e-05,2795.7,2795.6,10.77814756]
[1645863338699,0.35962198,2795.7,2795.6,10.77814756]
[1645863338900,6.642e-05,2795.7,2795.6,10.77814756]
[1645863340107,6.642e-05,2795.7,2795.6,15.70758226]
[1645863340504,6.642e-05,2795.7,2795.6,12.20758226]
[1645863341306,6.642e-05,2795.7,2795.6,15.70758226]
[1645863341705,6.642e-05,2795.7,2795.6,27.99920744]
[1645863341907,6.642e-05,2795.7,2795.6,28.87390744]
[1645863342342,6.642e-05,2795.7,2795.6,28.54228226]
[1645863342947,6.642e-05,2795.7,2795.6,29.54228226]
[1645863343146,6.642e-05,2795.7,2795.6,30.94516281]
[1645863343351,6.642e-05,2795.7,2795.6,36.13927055]
[1645863343955,0.36345407,2797.1,2796.1,11.3187]
[1645863344151,0.36345407,2797.1,2796.3,11.85418]
[1645863344352,0.35949349,2797.0,2796.7,8.27814756]
[1645863344551,0.35949349,2796.9,2796.7,8.27814756]
[1645863344753,0.35949349,2796.8,2796.7,8.27814756]
[1645863344951,0.36176491,2796.8,2796.7,8.27814756]
[1645863345252,0.00227142,2796.8,2796.7,8.27814756]
[1645863345890,0.36345407,2797.2,2796.7,8.27814756]
[1645863346092,0.00227142,2796.9,2796.7,8.27814756]
[1645863346692,0.00227142,2796.9,2796.7,11.77814756]
[1645863346894,0.35949349,2797.1,2796.7,11.77814756]
[1645863347096,0.35949349,2797.1,2796.7,12.67227756]
[1645863347299,0.00508252,2796.9,2796.8,0.3]
[1645863347496,0.36457601,2796.9,2796.8,3.8]
[1645863347695,0.00508252,2796.9,2796.8,4.316]
[1645863347896,0.00508252,2796.9,2796.8,4.6747]
[1645863348197,0.00396058,2797.7,2797.1,0.3587]
[1645863348398,1.67519433,2798.0,2797.5,1.22992308]
[1645863348399,0.35986362,2797.9,2797.5,1.22992308]
[1645863348598,0.35590304,2797.9,2797.5,1.22992308]
[1645863348796,0.35590304,2797.9,2797.5,1.52992308]
[1645863349298,0.35590304,2797.9,2797.5,0.3]
[1645863349544,0.00226844,2797.8,2797.5,0.3]
[1645863349738,0.00226844,2797.8,2797.7,4.1396885]
[1645863350143,0.00226844,2797.8,2797.7,8.27814756]
[1645863350543,0.35590304,2797.9,2797.7,8.27814756]
[1645863350744,0.35817148,2797.9,2797.7,8.27814756]
[1645863351646,0.35590304,2797.9,2797.7,8.27814756]
[1645863352046,0.36098836,2797.9,2797.8,1.06304514]
[1645863352648,0.36098836,2797.9,2797.7,8.27814756]
[1645863352847,0.35590304,2797.8,2797.7,8.57814756]
[1645863353048,0.35590304,2797.8,2797.7,12.07814756]
[1645863353292,1.0,2798.0,2797.7,12.07814756]
[1645863353293,0.00508532,2797.9,2797.7,12.07814756]
[1645863353498,0.95508532,2798.0,2797.9,10.96]
[1645863353696,0.95508532,2798.0,2797.9,0.3]
[1645863353897,0.95508532,2798.0,2797.7,8.27814756]
[1645863354298,0.95508532,2798.0,2797.7,8.57814756]
[1645863354497,0.95508532,2798.0,2797.7,9.47199756]
[1645863354697,0.95508532,2798.0,2797.7,5.33230906]
[1645863354896,0.95508532,2798.0,2797.8,1.06613809]
[1645863355099,0.95508532,2798.0,2797.8,5.20582659]
[1645863355295,0.95508532,2798.0,2797.9,4.13845906]
[1645863355896,0.95508532,2798.0,2797.9,7.93845906]
[1645863356101,0.95508532,2798.0,2797.9,4.43845906]
[1645863356499,0.95508532,2798.0,2797.9,5.5253513]
[1645863357041,0.95508532,2798.0,2797.9,4.43845906]
[1645863357242,0.95508532,2798.0,2797.9,4.13845906]
[1645863358850,1.30938132,2798.0,2797.9,4.13845906]
[1645863359149,0.95508532,2798.0,2797.9,4.13845906]
[1645863359750,0.95508532,2798.0,2797.9,5.40135875]
[1645863359949,0.95508532,2798.0,2797.9,4.13845906]
[1645863360351,0.95508532,2798.0,2797.9,4.1396885]
[1645863360548,0.95508532,2798.0,2797.9,4.0896885]
[1645863360783,0.95508532,2798.0,2797.9,6.61684752]
[1645863362591,0.95508532,2798.0,2797.5,2.5]
[1645863362592,7.0,2797.9,2797.5,2.5]
[1645863362795,1.36089074,2797.8,2797.5,2.5]
[1645863363794,1.1183438,2797.7,2797.5,2.5]
[1645863364095,0.89423,2797.7,2797.5,2.5]
[1645863364292,0.84423,2797.7,2797.5,2.5]
[1645863365754,1.53888211,2797.8,2797.5,2.5]
[1645863365951,1.36089074,2797.8,2797.5,2.5]
[1645863367859,0.89422,2797.7,2797.5,2.5]
[1645863368299,1.36089074,2797.8,2797.5,2.5]
[1645863368503,1.95975207,2798.0,2797.5,2.5]
[1645863368805,0.95955607,2798.0,2797.5,2.5]
[1645863369401,0.95955607,2798.0,2797.0,3.5]
[1645863369601,1.43427859,2797.7,2796.9,2.08803]
[1645863370002,1.43823917,2797.7,2796.9,2.08803]
[1645863370203,1.33823917,2797.7,2796.9,0.3]
[1645863370403,1.33427859,2797.7,2796.8,4.1]
[1645863370604,1.33427859,2797.7,2797.1,1.30487939]
[1645863370802,0.00396058,2797.9,2797.1,1.30487939]
[1645863371405,0.00396058,2797.9,2797.2,3.5]
[1645863371602,0.97743873,2798.0,2797.1,1.30487939]
[1645863371802,0.00396058,2797.9,2797.1,1.30487939]
[1645863372046,1.99201458,2798.0,2797.1,2.49886939]
[1645863372246,0.00396058,2797.9,2797.1,2.49886939]
[1645863372451,1.96966117,2798.0,2797.1,2.49886939]
[1645863372651,0.00396058,2797.9,2797.1,2.49886939]
[1645863372850,1.31828721,2798.0,2797.1,2.49886939]
[1645863373056,0.00396058,2797.9,2797.1,2.49886939]
[1645863373251,0.95958721,2798.0,2797.1,2.49886939]
[1645863373455,0.36266058,2797.9,2797.1,1.30487939]
[1645863373653,0.95958721,2798.0,2797.1,1.60487939]
[1645863373852,0.95958721,2798.0,2797.1,0.3]
[1645863373853,0.00396058,2797.9,2797.1,0.3]
[1645863374053,0.95958721,2798.0,2797.1,0.3]
[1645863374256,0.00396058,2797.9,2796.8,4.1]
[1645863374456,0.36266058,2797.9,2796.8,3.8]
[1645863374656,0.36266058,2797.9,2797.1,3.6]
[1645863374854,0.37060194,2797.9,2797.1,3.6]
[1645863375157,0.01190194,2797.9,2797.1,7.4]
[1645863375355,0.01190194,2797.9,2797.4,1.30896729]
[1645863375560,0.91501193,2798.0,2797.4,1.30896729]
[1645863375799,0.91302668,2798.0,2797.4,1.30896729]
[1645863375992,0.91302668,2798.0,2797.4,1.60896729]
[1645863379302,1.27172668,2798.0,2797.1,3.6]
[1645863379543,0.91302668,2798.0,2797.1,3.6]
[1645863379746,0.91302668,2798.0,2797.1,3.9]
[1645863379747,3.5,2797.9,2797.1,3.9]
[1645863379944,0.3587,2797.9,2797.1,3.9]
[1645863380448,3.8587,2797.9,2797.1,3.9]
[1645863380647,0.3587,2797.9,2797.1,3.9]
[1645863381048,0.89423,2797.7,2797.1,3.9]
[1645863382046,0.15952357,2797.8,2797.1,3.9]
[1645863382248,0.00396058,2797.8,2797.1,3.9]
[1645863383070,1.15514176,2797.4,2797.1,3.6]
[1645863383299,0.89424,2797.7,2797.4,0.45637341]
[1645863384105,1.32709999,2797.6,2797.4,0.45637341]
[1645863384306,0.34602905,2797.5,2797.4,0.45637341]
[1645863385105,1.52774748,2797.6,2797.4,0.45637341]
[1645863385313,0.00396058,2797.9,2797.4,0.45637341]
[1645863385507,0.34603495,2797.9,2797.4,0.45637341]
[1645863386807,0.34603495,2797.9,2797.5,1.14192526]
[1645863388551,0.34603495,2797.9,2797.5,1.13242526]
[1645863388753,0.34603495,2797.9,2797.4,1.51841182]
[1645863389753,0.34603495,2797.9,2797.4,0.45637341]
[1645863390900,0.34603495,2797.9,2797.4,0.75637341]
[1645863391102,0.34603495,2797.9,2797.4,4.25637341]
[1645863391312,0.34603495,2797.9,2797.7,1.13899911]
[1645863392907,0.34603495,2797.9,2796.9,1.5142902]
[1645863392908,12.01285363,2797.8,2796.9,1.5142902]
[1645863393106,12.01285363,2797.8,2796.5,0.6692352]
[1645863393107,0.01298425,2797.0,2796.5,0.6692352]
[1645863393305,0.01298425,2797.0,2796.4,0.6692352]
[1645863393509,0.01298425,2797.0,2796.1,0.6692352]
[1645863393707,0.01298425,2797.0,2796.0,0.6692352]
[1645863393912,0.15675553,2796.6,2796.0,0.6692352]
[1645863394109,0.89446,2797.0,2796.1,0.6692352]
[1645863394310,0.89446,2797.0,2795.9,1.21330171]
[1645863394311,0.89446,2797.0,2796.2,0.6692352]
[1645863394539,0.89446,2797.0,2796.2,11.6292352]
[1645863394741,4.70669433,2797.4,2795.9,2.10767171]
[1645863394742,4.0315,2797.4,2796.3,0.6692352]
[1645863394940,4.0315,2797.4,2795.9,2.10767171]
[1645863394941,4.0315,2797.4,2796.4,0.6692352]
[1645863395140,4.3827,2797.4,2796.4,0.6692352]
[1645863395342,1.12641674,2797.2,2796.7,0.00477406]
[1645863396342,1.12641674,2797.2,2796.5,1.41432888]
[1645863396545,1.12641674,2797.2,2796.8,0.00477405]
[1645863396946,0.89438,2797.1,2796.8,0.00477405]
[1645863397647,0.89438,2797.1,2796.2,0.3]
[1645863397850,0.89438,2797.1,2796.8,0.00477405]
[1645863398048,1.38704665,2797.0,2796.8,0.00477405]
[1645863398700,1.38704665,2797.0,2796.8,3.6]
[1645863398903,1.38704665,2797.0,2796.8,3.60476989]
[1645863400002,1.38704665,2797.0,2796.8,3.6]
[1645863400201,1.38704665,2797.0,2796.8,3.60476989]
[1645863401204,1.38704665,2797.0,2796.8,3.6]
[1645863401505,0.89438,2797.1,2796.8,3.60476989]
[1645863401905,1.7888,2797.3,2796.8,3.60476989]
[1645863402340,2.11404369,2797.4,2796.8,3.6]
[1645863402341,1.89431,2797.4,2796.8,3.6]
[1645863402542,1.06887575,2797.2,2796.8,3.60477029]
[1645863403548,1.06887575,2797.2,2796.8,3.6]
[1645863403748,1.06887575,2797.2,2796.8,3.60477025]
[1645863404352,3.5,2797.1,2796.8,1.99287892]
[1645863404748,5.016,2797.1,2796.8,1.98810867]
[1645863404948,4.016,2797.1,2796.8,1.99287888]
[1645863405148,4.966,2797.1,2796.8,1.99287888]
[1645863405348,0.89443,2797.0,2796.8,1.99287888]
[1645863405548,3.5,2796.9,2796.8,1.99287888]
[1645863405790,4.5,2796.9,2796.8,1.99287888]
[1645863405992,7.3468,2796.8,2795.9,0.6692352]
[1645863406200,4.3747,2796.7,2795.8,7.45]
[1645863406402,0.6488,2796.5,2795.8,7.45]
[1645863406695,0.6488,2796.3,2795.8,7.45]
[1645863406907,1.1648,2796.3,2795.8,7.45]
[1645863407096,1.04134215,2796.1,2795.8,7.45]
[1645863407293,1.1648,2796.3,2795.9,0.00477091]
[1645863407496,2.05963,2796.3,2795.9,0.00477091]
[1645863407897,1.41083,2796.3,2795.9,0.00477091]
[1645863408096,4.9613,2796.7,2795.9,0.00477091]
[1645863408299,4.9613,2796.7,2795.8,7.45]
[1645863408498,0.43764668,2796.6,2795.8,7.45]
[1645863408699,0.43764668,2796.6,2796.0,0.00477086]
[1645863408900,3.61384695,2796.7,2796.1,1.05229826]
[1645863409100,3.4453,2796.7,2796.1,1.05229826]
[1645863409300,3.4453,2796.7,2796.1,1.35229826]
[1645863409546,3.4453,2796.7,2796.2,1.05229826]
[1645863409744,4.39456,2796.6,2796.3,1.05706888]
[1645863409949,1.36208042,2796.6,2796.3,0.00477062]
[1645863410149,0.46752042,2796.5,2796.3,0.00477062]
[1645863410348,1.30315744,2796.4,2796.3,0.00477062]
[1645863410549,1.77067786,2796.4,2796.3,0.00477062]
[1645863410746,1.77067786,2796.4,2795.8,7.45]
[1645863410947,1.30315744,2796.4,2796.2,0.00477066]
[1645863411549,0.89466,2796.3,2796.2,0.00477066]
[1645863411950,0.89466,2796.3,2796.1,3.6]
[1645863412151,0.89466,2796.3,2796.1,3.60477075]
[1645863412549,0.84466,2796.3,2796.1,3.60477075]
[1645863413151,0.84466,2796.3,2796.1,3.6]
[1645863413428,0.84466,2796.3,2796.1,3.6047708]
[1645863414028,4.34466,2796.3,2796.1,3.6047708]
[1645863414229,3.5,2796.2,2796.1,3.6]
[1645863414630,3.5,2796.2,2796.1,3.60477079]
[1645863415135,1.84466,2796.3,2796.1,3.60477079]
[1645863415330,4.34466,2796.3,2796.1,3.60477079]
[1645863415530,4.34466,2796.3,2796.1,3.6]
[1645863415732,5.34466,2796.3,2796.1,3.60477079]
[1645863415930,5.4455275,2796.2,2796.1,3.60477079]
[1645863416329,6.4455275,2796.2,2796.1,3.60477079]
[1645863416730,6.4455275,2796.2,2796.1,3.6]
[1645863417367,7.0943275,2796.2,2796.1,3.6]
[1645863418368,3.43847,2796.2,2796.1,3.6]
[1645863418669,2.78967,2796.2,2796.1,3.6]
[1645863418868,1.0,2796.2,2796.1,3.6]
[1645863419268,3.5,2796.2,2796.1,3.6]
[1645863419474,0.84466,2796.3,2796.1,3.6]
[1645863420474,0.84466,2796.3,2796.1,3.60477079]
[1645863421600,0.84466,2796.3,2796.1,3.6]
[1645863421799,0.84466,2796.3,2796.1,3.6047708]
[1645863422799,0.20932605,2796.4,2796.2,7.0]
[1645863423004,1.83740871,2796.9,2796.2,7.0]
[1645863423005,0.00396058,2797.5,2796.3,4.47939269]
[1645863423304,0.51137143,2797.5,2796.4,1.33809269]
[1645863423505,0.51137143,2797.5,2796.6,0.3587]
[1645863423707,0.51137143,2797.5,2796.7,4.47939269]
[1645863423906,0.51137143,2797.5,2797.1,1.18269789]
[1645863424107,0.50741085,2797.5,2797.1,1.18269789]
[1645863424307,0.50741085,2797.5,2796.8,0.00477029]
[1645863425153,0.50741085,2797.5,2796.4,2.0029]
[1645863425356,1.26398839,2797.2,2796.7,1.15468741]
[1645863425552,0.00396058,2797.4,2796.8,0.00477037]
[1645863425755,0.50741085,2797.5,2796.8,0.00477037]
[1645863425954,0.51137143,2797.5,2796.8,0.00477037]
[1645863426153,0.50741085,2797.5,2796.8,0.00477037]
[1645863426452,0.50741085,2797.5,2796.7,1.45468741]
[1645863426653,0.51137143,2797.5,2796.8,0.98427959]
[1645863426854,3.80196304,2797.6,2797.2,1.38790179]
[1645863426855,3.61852953,2797.6,2797.2,1.38790179]
[1645863427053,3.61456895,2797.6,2797.2,1.38790179]
[1645863427254,0.50750921,2797.5,2797.2,1.38790179]
[1645863427453,3.61456895,2797.6,2797.2,1.38790179]
[1645863427657,3.6098,2797.6,2797.2,1.38790179]
[1645863427855,3.61456916,2797.6,2797.2,1.38790179]
[1645863428053,0.50749222,2797.5,2797.2,1.38790179]
[1645863428305,0.50749222,2797.5,2796.9,0.8941]
[1645863428504,0.50749222,2797.5,2797.0,0.97113499]
[1645863428705,0.50749222,2797.5,2796.7,0.6]
[1645863428905,0.50749222,2797.5,2796.8,4.82988277]
[1645863429105,0.50749222,2797.5,2796.9,0.97118277]
[1645863429508,12.33785772,2797.0,2796.8,0.14767039]
[1645863429707,3.25755387,2796.9,2796.8,0.14767039]
[1645863429906,3.25755387,2796.9,2796.8,0.03107312]
[1645863429907,0.80422285,2796.9,2796.8,0.03107312]
[1645863430107,4.91272409,2796.9,2796.8,0.03107312]
[1645863430309,1.80422285,2796.9,2796.8,0.03107312]
[1645863430506,1.80422285,2796.9,2796.8,0.03584327]
[1645863430712,1.69880285,2796.9,2796.8,0.03584327]
[1645863431106,1.69880285,2796.9,2796.4,0.25]
[1645863431107,0.0047,2796.8,2796.4,0.25]
[1645863431308,0.0047,2796.8,2795.3,0.6692352]
[1645863431309,13.4717,2796.4,2795.3,0.6692352]
[1645863431509,5.01250691,2796.5,2795.2,0.93326004]
[1645863431510,15.96,2795.5,2795.2,0.93326004]
[1645863431706,0.17717383,2795.3,2795.0,0.00326205]
[1645863431910,11.476,2795.2,2794.8,0.25]
[1645863432157,11.476,2795.2,2794.4,0.00326205]
[1645863432158,10.96,2795.0,2794.4,0.00326205]
[1645863432357,10.96,2795.0,2794.2,0.00326205]
[1645863432358,0.6438,2794.9,2794.2,0.00326205]
[1645863432558,0.6438,2794.9,2793.9,1.37924306]
[1645863432559,0.86062382,2794.9,2794.0,0.00326205]
[1645863432959,1.53911,2794.9,2794.0,0.00326205]
[1645863433256,2.3463278,2794.9,2794.0,0.00326205]
[1645863433460,3.55596552,2794.9,2794.0,0.00326205]
[1645863433661,2.3463278,2794.9,2794.8,3.6]
[1645863433964,3.3463278,2794.9,2794.8,3.6]
[1645863434164,2.3463278,2794.9,2794.8,3.6]
[1645863434361,3.3463278,2794.9,2794.8,3.6]
[1645863434960,4.6872993,2794.9,2794.8,3.6]
[1645863435160,3.6872993,2794.9,2794.8,3.6]
[1645863435467,4.6872993,2794.9,2794.8,3.6]
[1645863436539,3.3463278,2794.9,2794.8,3.6]
[1645863436839,2.3463278,2794.9,2794.8,3.6]
[1645863437038,3.3463278,2794.9,2794.8,3.6]
[1645863437241,2.3463278,2794.9,2794.8,3.6]
[1645863437438,3.3463278,2794.9,2794.8,3.6]
[1645863437840,1.4510178,2794.9,2794.8,3.6]
[1645863438045,1.0,2794.9,2794.8,3.6]
[1645863438241,0.17318909,2795.0,2794.8,3.6]
[1645863438446,1.54176332,2795.2,2794.8,3.6]
[1645863439247,0.516,2795.2,2794.8,3.6]
[1645863439871,0.89507,2794.9,2794.8,3.6]
[1645863441374,1.91661819,2794.9,2794.8,3.6]
[1645863441570,0.89507,2794.9,2794.8,3.6]
[1645863444957,0.179164,2795.0,2794.8,3.6]
[1645863445161,1.0,2795.2,2794.8,3.6]
[1645863445362,0.6488,2795.3,2794.8,3.6]
[1645863445561,0.6488,2795.3,2794.8,3.9587]
[1645863445865,2.965,2795.7,2794.9,0.00509687]
[1645863446059,2.965,2795.7,2795.3,1.34996488]
[1645863446262,3.26975909,2795.9,2794.9,0.0083675]
[1645863446463,0.89483,2795.7,2794.9,0.0083675]
[1645863446861,0.89483,2795.7,2794.9,0.00327063]
[1645863447060,0.89483,2795.7,2795.2,0.00509657]
[1645863447963,0.89483,2795.7,2794.9,0.00327063]